bitfinex-derivatives/quotes_ETHF0:USTF0_20260112
["timestamp","ask_amount","ask_price","bid_price","bid_amount"]
[1768235400881,3.182,3146.8,3145.7,0.15908]
[1768235401083,0.00231554,3147.1,3145.8,0.15908]
[1768235401284,1.278,3146.7,3145.8,0.15908]
[1768235401787,1.278,3146.8,3145.8,0.15908]
[1768235401981,1.278,3146.8,3145.3,0.1591]
[1768235402183,1.278,3146.8,3145.8,0.15908]
[1768235402382,0.00231554,3147.1,3145.8,0.15908]
[1768235402685,4.461,3147.0,3145.8,0.15908]
[1768235403276,0.00231554,3147.1,3146.1,0.15906]
[1768235403481,1.28031554,3147.1,3146.2,0.15906]
[1768235404285,0.00231554,3147.1,3146.2,0.15906]
[1768235404685,0.14268248,3148.0,3146.4,0.15905]
[1768235404887,1.277,3147.7,3146.4,0.15905]
[1768235405291,3.182,3147.9,3146.8,0.15903]
[1768235405477,0.5,3148.4,3146.2,0.14091779]
[1768235405789,0.02045222,3147.8,3146.9,0.15902]
[1768235406177,0.02045222,3147.8,3146.2,0.16249182]
[1768235406383,0.1631347,3147.8,3146.2,0.16249182]
[1768235406889,0.1631347,3147.8,3146.3,0.15905]
[1768235407287,4.459,3147.7,3146.3,0.15905]
[1768235407482,0.14268248,3147.6,3146.3,0.15905]
[1768235407994,0.14268248,3147.6,3146.2,0.00343182]
[1768235408787,0.14268248,3147.4,3146.2,0.00343182]
[1768235409486,4.459,3147.3,3146.2,0.00343182]
[1768235409687,0.14268248,3147.4,3146.2,0.00343182]
[1768235409989,0.02045222,3147.8,3146.2,0.00343182]
[1768235410292,4.459,3147.7,3146.2,0.16249182]
[1768235410493,3.182,3147.6,3146.5,0.15904]
[1768235410692,4.459,3147.6,3146.6,0.15904]
[1768235410879,0.02045222,3147.8,3146.6,0.15904]
[1768235411080,1.277,3147.7,3146.6,0.15904]
[1768235411378,0.14268248,3147.6,3146.2,0.00343182]
[1768235411583,4.459,3147.5,3146.5,0.15904]
[1768235411779,1.277,3147.4,3146.5,0.15904]
[1768235412384,0.14268248,3147.7,3146.5,0.15904]
[1768235412586,4.459,3147.6,3146.5,0.15904]
[1768235412881,4.459,3147.6,3146.2,0.00343182]
[1768235412882,0.02045222,3147.8,3146.6,0.15904]
[1768235413095,0.02045222,3147.8,3146.7,0.15903]
[1768235413292,4.459,3147.7,3146.7,0.15903]
[1768235413492,0.02045222,3147.8,3146.7,0.15903]
[1768235413688,0.02045222,3147.8,3147.1,0.15901]
[1768235413995,0.02045222,3147.8,3147.2,0.15901]
[1768235414399,0.02045222,3147.8,3146.5,0.15904]
[1768235414589,0.15298241,3147.8,3146.2,0.00343182]
[1768235415093,0.13253019,3146.8,3144.7,0.15913]
[1768235415302,0.13253019,3146.6,3144.9,0.15913]
[1768235415492,0.13253019,3146.5,3144.9,0.15913]
[1768235415796,0.13253019,3146.5,3144.6,0.13965983]
[1768235415986,0.13253019,3147.2,3144.6,0.14242297]
[1768235416188,1.277,3147.1,3145.1,0.13965983]
[1768235416494,0.13253019,3147.7,3145.9,0.15907]
[1768235416700,0.13253019,3147.6,3146.1,0.15906]
[1768235416899,4.458,3147.5,3146.1,0.15906]
[1768235417396,1.277,3147.4,3146.4,0.15905]
[1768235417601,3.181,3147.6,3146.5,0.15904]
[1768235417787,1.277,3147.5,3146.5,0.15904]
[1768235420204,0.02045222,3147.8,3146.6,0.15904]
[1768235420397,1.277,3147.5,3146.6,0.15904]
[1768235420799,1.277,3147.4,3146.6,0.15904]
[1768235421000,0.02045222,3147.8,3146.7,0.15903]
[1768235421508,0.02045222,3147.8,3146.9,0.15902]
[1768235421701,4.458,3147.7,3146.9,0.16124745]
[1768235422007,1.277,3147.6,3146.9,0.16124745]
[1768235424010,1.277,3147.6,3145.9,0.13965983]
[1768235424510,1.277,3147.6,3146.6,0.15904]
[1768235424710,4.457,3147.5,3146.6,0.15904]
[1768235424909,4.457,3147.5,3145.1,0.13965983]
[1768235425108,4.457,3147.5,3146.0,0.15907]
[1768235425312,4.457,3147.5,3145.7,0.13965983]
[1768235425516,4.457,3147.5,3146.2,0.15906]
[1768235425812,0.11572504,3147.4,3145.6,0.15909]
[1768235426212,4.457,3147.5,3145.6,0.15909]
[1768235426213,0.11489343,3147.2,3145.6,0.15909]
[1768235426907,0.11489343,3147.1,3145.1,0.00247612]
[1768235427210,0.11489343,3146.4,3144.3,0.15915]
[1768235427418,0.11489343,3146.4,3144.1,0.13965983]
[1768235427601,10.526,3146.3,3144.8,0.29878983]
[1768235427917,4.458,3146.2,3144.8,0.29878983]
[1768235428315,4.458,3146.2,3144.8,0.30108297]
[1768235428519,4.458,3146.2,3144.8,0.16142314]
[1768235428711,4.458,3146.1,3144.8,0.16142314]
[1768235429514,6.1,3146.8,3144.8,0.16142314]
[1768235429515,4.458,3146.0,3144.8,0.16142314]
[1768235429714,4.458,3145.9,3144.8,0.16142314]
[1768235431919,4.459,3145.8,3144.8,0.00229314]
[1768235432112,4.459,3145.8,3144.1,0.15916]
[1768235432317,0.15905,3146.4,3144.5,0.15914]
[1768235432516,4.459,3146.3,3144.5,0.15914]
[1768235432918,0.10721584,3146.2,3144.5,0.15914]
[1768235433115,0.10721584,3146.2,3144.5,0.00290128]
[1768235433418,0.10721584,3146.2,3143.9,0.15917]
[1768235433621,0.10431456,3146.1,3143.9,0.15917]
[1768235434118,0.10324614,3145.9,3143.9,0.15917]
[1768235434317,0.10324614,3145.9,3143.9,0.16238014]
[1768235434522,0.10342596,3146.4,3144.1,0.15916]
[1768235434722,6.20342596,3146.3,3144.1,0.15916]
[1768235434909,3.28542596,3146.2,3144.1,0.15916]
[1768235435220,0.10342596,3146.1,3144.1,0.15916]
[1768235435621,0.10342596,3145.9,3144.1,0.15916]
[1768235435817,0.10342596,3145.8,3143.9,0.00321014]
[1768235436016,1.278,3145.7,3143.9,0.16239014]
[1768235436224,4.46,3145.6,3144.1,0.15916]
[1768235436722,4.46,3145.6,3144.2,0.15916]
[1768235436924,4.46,3145.5,3144.2,0.15916]
[1768235437122,4.46350851,3145.5,3144.2,0.15916]
[1768235437923,0.00350851,3145.5,3144.2,0.15916]
[1768235438122,4.46,3145.4,3144.2,0.15916]
[1768235438523,0.10229794,3145.3,3143.6,0.15919]
[1768235438922,4.46,3145.2,3143.6,0.15919]
[1768235439318,4.46,3145.2,3143.2,0.14293338]
[1768235439619,0.0990878,3145.1,3143.2,0.30522152]
[1768235439817,3.198,3145.4,3143.2,0.14601152]
[1768235440026,1.278,3145.0,3143.5,0.15919]
[1768235441024,3.198,3145.0,3143.5,0.15919]
[1768235441221,4.461,3144.9,3143.5,0.15919]
[1768235441616,3.198,3145.3,3143.7,0.15919]
[1768235441923,0.00350851,3145.5,3143.3,0.14293338]
[1768235442124,4.461,3145.4,3143.3,0.14293338]
[1768235442628,4.461,3145.3,3144.0,0.15917]
[1768235443423,0.00350851,3145.5,3143.6,0.30212338]
[1768235443635,7.659,3145.4,3143.6,0.30212338]
[1768235443821,7.659,3145.4,3143.6,0.15919]
[1768235444221,0.00350851,3145.5,3144.5,0.15914]
[1768235444621,0.00350851,3145.5,3144.6,0.15914]
[1768235446334,1.279,3145.4,3144.6,0.15914]
[1768235446831,1.278,3145.3,3144.6,0.15914]
[1768235447538,0.5,3146.0,3145.2,0.14293338]
[1768235447839,1.278,3145.9,3145.2,0.30204338]
[1768235448135,0.5,3146.0,3145.2,0.30204338]
[1768235448438,1.278,3145.9,3145.2,0.30204338]
[1768235448731,0.00377231,3145.9,3145.2,0.30204338]
[1768235449033,0.5,3146.0,3143.4,2.20254874]
[1768235449034,0.5,3146.0,3145.5,0.14293338]
[1768235449927,0.5,3146.0,3145.6,0.15909]
[1768235450128,0.50386141,3146.0,3145.6,0.16142506]
[1768235451429,1.278,3146.3,3145.9,0.15907]
[1768235451738,1.278,3146.9,3145.6,0.14526844]
[1768235452031,1.94303972,3147.1,3145.6,0.16142506]
[1768235452339,0.14175352,3146.9,3145.6,0.00233506]
[1768235452537,0.14175352,3146.9,3145.0,0.15912]
[1768235452737,0.14175352,3146.9,3145.1,0.15911]
[1768235453135,4.461,3146.8,3145.2,0.15911]
[1768235453440,4.60275352,3146.8,3145.2,0.15911]
[1768235453630,4.60275352,3146.8,3145.2,0.16218049]
[1768235454541,0.14175352,3146.7,3145.2,0.16218049]
[1768235454932,0.14175352,3146.5,3145.2,0.00307049]
[1768235455132,0.14175352,3146.0,3144.7,0.15914]
[1768235455432,1.41975352,3145.9,3144.7,0.15914]
[1768235455745,1.94303972,3145.6,3144.1,0.15916]
[1768235455927,3.182,3145.5,3144.1,0.15916]
[1768235456226,1.94303972,3146.1,3144.1,0.16226953]
[1768235456432,0.10183529,3145.9,3144.1,0.16226953]
[1768235457340,4.46,3145.8,3144.1,0.16226953]
[1768235458743,1.94303972,3145.6,3144.1,0.16226953]
[1768235459138,0.15906,3146.1,3144.1,0.16226953]
[1768235459448,2.03973744,3146.4,3144.3,0.15916]
[1768235459638,3.183,3146.3,3144.9,0.15912]
[1768235459940,4.461,3146.3,3144.9,0.15912]
[1768235460141,4.461,3146.3,3145.0,0.15912]
[1768235460639,0.09669772,3146.9,3145.2,0.15911]
[1768235460841,0.00401301,3147.1,3145.4,0.1591]
[1768235460842,4.461,3146.8,3145.4,0.1591]
[1768235461143,1.278,3146.7,3145.7,0.15908]
[1768235461644,1.278,3146.7,3144.9,0.14293338]
[1768235462243,1.278,3146.7,3145.2,0.15911]
[1768235462842,0.09711033,3147.0,3144.9,0.14293338]
[1768235463043,0.09711033,3147.0,3144.1,0.00310953]
[1768235463044,1.278,3146.9,3145.9,0.15907]
[1768235463251,1.278,3146.9,3146.0,0.15907]
[1768235463637,1.278,3146.9,3146.2,0.15906]
[1768235463839,1.278,3147.0,3146.2,0.30199338]
[1768235464946,0.00401301,3147.1,3146.3,0.13246541]
[1768235466544,0.00401301,3147.1,3146.3,0.29151541]
[1768235466750,0.00401301,3147.1,3146.0,0.15907]
[1768235467150,0.00401301,3147.1,3145.3,0.13246541]
[1768235467351,0.00401301,3147.1,3145.8,0.13246541]
[1768235467651,1.278,3147.0,3145.8,0.13246541]
[1768235468550,1.278,3147.0,3146.1,0.15906]
[1768235469449,1.278,3147.0,3146.2,0.15906]
[1768235469846,0.00401301,3147.1,3146.2,0.15906]
[1768235470050,0.00401301,3147.1,3146.2,0.13246541]
[1768235470248,0.00401301,3147.1,3146.6,0.15904]
[1768235470556,0.00401301,3147.1,3146.6,0.29502377]
[1768235470854,0.01753709,3147.8,3147.0,0.15902]
[1768235471043,1.29553709,3147.8,3147.0,0.29148541]
[1768235471745,1.29833139,3147.8,3147.0,0.29148541]
[1768235474049,0.02033139,3147.8,3147.0,0.13246541]
[1768235474354,1.278,3148.1,3147.3,0.159]
[1768235474953,1.278,3148.1,3144.3,9.59466627]
[1768235474954,1.94303972,3147.4,3144.3,9.59466627]
[1768235475145,0.13490396,3147.8,3144.9,1.94303972]
[1768235475448,4.459,3147.7,3146.1,0.15906]
[1768235475856,0.13490396,3147.7,3146.2,0.15906]
[1768235476051,4.459,3147.6,3146.2,0.16150516]
[1768235477659,0.13490396,3147.5,3146.2,0.16150516]
[1768235478359,0.00381763,3147.7,3146.2,0.16150516]
[1768235478360,0.00381763,3147.7,3147.0,0.15902]
[1768235478565,0.00381763,3147.7,3146.3,0.13620593]
[1768235478854,0.00381763,3147.7,3147.3,0.159]
[1768235479555,0.00381763,3147.7,3147.4,0.159]
[1768235479758,1.277,3148.2,3147.5,0.15899]
[1768235479964,1.277,3148.2,3146.9,0.13620593]
[1768235479965,0.13490396,3149.4,3148.1,0.15896]
[1768235480257,2.85634868,3150.7,3146.2,3.18344516]
[1768235480258,0.13490396,3148.9,3146.2,1.94548488]
[1768235480464,0.13490396,3148.9,3147.2,0.15901]
[1768235480654,0.13857323,3148.9,3147.2,0.15901]
[1768235480848,0.13490396,3148.4,3146.5,0.15904]
[1768235481052,0.13490396,3148.0,3146.2,0.00244516]
[1768235481359,0.13490396,3147.5,3145.2,0.15911]
[1768235481557,0.13490396,3147.3,3145.3,0.1591]
[1768235481753,27.574,3148.6,3143.9,0.26039249]
[1768235481754,0.13490396,3147.1,3145.7,0.15908]
[1768235481954,0.13490396,3146.9,3145.7,0.15908]
[1768235482261,0.13490396,3146.7,3145.7,0.16256423]
[1768235483945,0.13490396,3146.7,3145.9,0.15907]
[1768235486051,0.13490396,3146.7,3145.2,0.15911]
[1768235486250,0.13490396,3146.7,3143.6,3.181]
[1768235486251,0.13490396,3146.4,3144.4,0.15915]
[1768235486447,0.13490396,3146.4,3143.1,1.94303972]
[1768235486652,0.13490396,3146.2,3143.6,1.94303972]
[1768235487059,0.1379893,3146.2,3143.6,0.00385971]
[1768235487255,0.1379893,3146.2,3144.1,0.15916]
[1768235487552,0.1379893,3146.2,3144.2,0.15916]
[1768235487758,0.1379893,3146.2,3144.3,0.15916]
[1768235487949,0.13490396,3146.0,3144.6,0.15914]
[1768235489358,0.13490396,3145.8,3143.8,0.15918]
[1768235489554,0.13490396,3145.8,3144.0,0.15917]
[1768235491558,0.13490396,3145.8,3143.6,0.00385971]
[1768235491559,0.13490396,3145.3,3143.6,0.00385971]
[1768235492263,0.13490396,3145.3,3143.6,0.16304971]
[1768235495763,0.13676528,3144.2,3142.9,0.15922]
[1768235495954,9.198,3145.3,3142.9,0.15922]
[1768235495955,0.13676528,3144.0,3142.9,0.15922]
[1768235496155,0.13676528,3143.9,3142.9,0.15922]
[1768235496356,1.278,3143.9,3142.4,1.94303972]
[1768235496662,1.278,3144.0,3143.2,0.15921]
[1768235496961,1.41878809,3144.0,3143.2,0.16195479]
[1768235497564,1.41878809,3144.0,3142.0,1.94303972]
[1768235497565,0.13676528,3143.9,3142.0,1.94303972]
[1768235497761,0.13676528,3143.9,3142.8,0.15923]
[1768235498468,0.13676528,3143.9,3142.8,0.16151872]
[1768235500965,0.13676528,3143.4,3141.8,0.15928]
[1768235501160,0.13676528,3143.4,3142.0,0.15927]
[1768235501367,3.183,3143.7,3142.6,0.15924]
[1768235501573,0.13676528,3143.9,3142.6,0.15924]
[1768235501763,0.13676528,3143.9,3142.6,0.00347074]
[1768235501967,1.278,3143.8,3142.6,0.00347074]
[1768235502163,1.278,3143.9,3142.6,0.00347074]
[1768235502367,1.41476528,3143.9,3142.6,0.00347074]
[1768235502869,0.13676528,3143.9,3142.6,0.00347074]
[1768235503169,1.28202281,3144.0,3142.6,0.00347074]
[1768235503480,0.00402281,3144.0,3143.6,0.15919]
[1768235503661,0.892,3144.5,3143.6,0.15919]
[1768235503860,0.892,3144.5,3143.7,0.15919]
[1768235504264,1.02876528,3144.5,3143.7,0.15919]
[1768235504468,0.13676528,3144.4,3143.7,0.15919]
[1768235504758,0.14031075,3144.4,3142.6,0.00347074]
[1768235504964,1.278,3144.3,3143.2,0.15921]
[1768235505170,1.278,3144.3,3143.3,0.15921]
[1768235505476,1.278,3144.3,3143.4,0.1592]
[1768235506866,1.278,3144.2,3142.6,1.94651046]
[1768235507073,1.278,3144.2,3143.8,0.15918]
[1768235507374,1.278,3144.3,3143.8,0.15918]
[1768235508863,0.00354547,3144.4,3143.8,0.15918]
[1768235509060,0.00354547,3144.4,3143.1,1.94303972]
[1768235509260,0.00354547,3144.4,3144.0,0.15917]
[1768235510767,0.00354547,3144.4,3144.1,0.15917]
[1768235514370,0.13676528,3145.9,3144.2,0.15916]
[1768235514568,0.13676528,3145.7,3143.1,0.02319953]
[1768235514762,3.184,3145.8,3143.8,0.02319953]
[1768235515075,4.462,3145.8,3144.9,0.15912]
[1768235515575,1.28209313,3145.8,3145.3,1e-08]
[1768235515771,0.00409313,3145.8,3145.3,1e-08]
[1768235515974,1.28209313,3145.8,3145.3,1e-08]
[1768235516175,0.13676528,3145.7,3145.3,0.15910001]
[1768235516875,0.13676528,3145.7,3144.9,0.00291524]
[1768235517283,0.13676528,3145.7,3144.9,0.16203524]
[1768235517571,0.13676528,3145.5,3144.2,0.15916]
[1768235518563,0.13676528,3145.5,3144.2,0.16162424]
[1768235519473,0.13676528,3145.3,3144.5,0.15914]
[1768235519664,3.183,3145.5,3144.2,0.00246424]
[1768235519972,1.278,3145.4,3144.8,0.15913]
[1768235520879,0.13676528,3145.6,3144.8,0.15913]
[1768235521086,0.00409313,3145.8,3144.2,0.00246424]
[1768235521386,3.31976528,3146.2,3145.8,0.15908]
[1768235521569,3.31976528,3146.2,3144.2,6.01427611]
[1768235521570,0.13676528,3146.1,3145.3,0.1591]
[1768235521773,0.13676528,3145.9,3145.3,1e-08]
[1768235521973,0.13676528,3145.8,3144.2,0.00246424]
[1768235522174,0.13676528,3145.8,3144.8,0.15913]
[1768235522474,0.14009582,3145.8,3144.2,0.16162424]
[1768235522673,0.13676528,3145.6,3144.2,0.16162424]
[1768235522870,0.13676528,3145.4,3144.2,0.16162424]
[1768235523074,0.13676528,3145.2,3144.2,0.16162424]
[1768235523475,0.13676528,3145.2,3142.0,0.00995324]
[1768235523981,4.461,3145.1,3144.2,0.15916]
[1768235524176,1.41037068,3145.0,3144.2,0.15916]
[1768235524384,0.13237068,3144.9,3144.2,0.16181446]
[1768235525679,1.278,3144.8,3144.2,0.16181446]
[1768235525984,0.13237068,3145.1,3144.2,0.16181446]
[1768235526169,1.278,3145.0,3144.2,0.16181446]
[1768235527083,1.41037068,3145.0,3144.2,0.16181446]
[1768235527481,0.13237068,3144.9,3144.2,1e-08]
[1768235527781,0.13237068,3144.9,3144.2,0.15916001]
[1768235528084,0.13237068,3144.9,3142.3,0.00848348]
[1768235528385,0.13237068,3144.9,3143.8,0.15918]
[1768235528587,0.13237068,3144.7,3143.8,0.15918]
[1768235528785,3.31537068,3144.7,3143.8,0.15918]
[1768235529083,0.13237068,3144.6,3143.8,0.16213755]
[1768235529580,0.00333054,3145.8,3143.8,0.00295755]
[1768235529789,4.46,3145.7,3143.8,0.00295755]
[1768235529983,4.46,3145.7,3144.5,0.15914]
[1768235530188,4.46,3145.7,3143.8,0.16213755]
[1768235530581,4.46,3145.7,3143.9,0.15918]
[1768235530887,4.46,3145.6,3144.0,0.15917]
[1768235531680,0.13237068,3145.5,3144.0,0.15917]
[1768235533186,0.13745691,3145.4,3144.0,0.15917]
[1768235533689,0.13745691,3145.2,3144.0,0.15917]
[1768235533889,0.13745691,3145.0,3144.0,0.15917]
[1768235534185,0.13745691,3144.8,3144.0,0.15917]
[1768235534382,0.13745691,3144.8,3142.3,0.14189791]
[1768235534586,4.59845691,3144.7,3143.7,0.15918]
[1768235534987,4.59845691,3144.7,3143.8,0.15918]
[1768235535381,4.59845691,3144.7,3143.8,0.16150542]
[1768235537193,0.13745691,3144.6,3143.8,0.16150542]
[1768235537896,0.13745691,3144.6,3142.3,0.14189791]
[1768235538397,4.461,3144.5,3142.3,0.14189791]
[1768235538593,4.461,3144.5,3143.4,0.1592]
[1768235538788,4.59845691,3144.5,3143.4,0.1592]
[1768235539096,4.59845691,3144.5,3143.4,0.16283957]
[1768235539301,0.13745691,3144.4,3143.4,0.16283957]
[1768235539494,0.13745691,3144.4,3142.7,0.15923]
[1768235539893,0.13745691,3144.2,3143.3,0.15921]
[1768235540093,1.278,3144.1,3143.2,0.15921]
[1768235540493,1.278,3144.1,3143.2,0.1623505]
[1768235540889,3.32045691,3144.3,3143.2,0.1623505]
[1768235540890,0.13745691,3144.3,3143.2,0.1623505]
[1768235541097,4.462,3144.2,3143.3,0.1592]
[1768235541295,1.278,3144.1,3143.6,0.15919]
[1768235541496,0.13745691,3144.8,3143.6,0.15919]
[1768235541694,3.184,3144.8,3144.1,0.15916]
[1768235541995,1.278,3144.7,3144.2,0.15916]
[1768235543797,0.13745691,3145.3,3144.2,0.15916]
[1768235543997,4.462,3145.2,3144.2,0.15916]
[1768235544605,0.13745691,3145.1,3144.2,0.15916]
[1768235545001,1.278,3145.0,3144.2,0.15916]
[1768235545803,0.13745691,3144.9,3144.2,0.15916]
[1768235546115,0.13745691,3144.9,3143.2,0.0031405]
[1768235546519,0.13745691,3144.9,3143.5,0.15919]
[1768235546821,0.13745691,3144.7,3143.2,0.0031405]
[1768235547021,0.13745691,3144.7,3142.8,0.15923]
[1768235547222,0.13745691,3144.5,3142.8,0.15923]
[1768235547725,0.13745691,3144.3,3142.9,0.15923]
[1768235547924,0.13745691,3144.3,3142.9,0.16330689]
[1768235548226,0.13745691,3144.1,3142.9,0.16330689]
[1768235548425,0.13745691,3143.9,3142.9,0.16330689]
[1768235550431,4.462,3143.8,3142.9,0.16330689]
[1768235550728,4.462,3143.7,3142.9,0.16330689]
[1768235552225,0.13745691,3143.9,3142.9,0.16330689]
[1768235552427,4.462,3143.8,3142.9,0.16330689]
[1768235552628,4.59945691,3143.8,3142.9,0.16330689]
[1768235552826,0.13745691,3143.7,3142.9,0.16330689]
[1768235553929,0.13745691,3144.2,3142.9,0.16330689]
[1768235554124,4.462,3144.1,3142.9,0.16330689]
[1768235554333,4.59945691,3144.1,3142.9,0.16330689]
[1768235554628,0.13745691,3144.1,3143.0,0.15922]
[1768235554930,0.13983467,3145.0,3143.6,0.15919]
[1768235555228,0.13983467,3144.8,3143.6,0.15919]
[1768235556526,1.278,3144.7,3142.9,0.00407689]
[1768235556730,4.462,3144.7,3142.9,0.00407689]
[1768235556933,4.462,3144.7,3143.6,0.15919]
[1768235557231,0.13983467,3144.8,3143.6,0.15919]
[1768235557533,4.462,3144.6,3143.6,0.15919]
[1768235558831,1.278,3144.5,3143.6,0.15919]
[1768235559032,0.13983467,3144.4,3143.6,0.15919]
[1768235559527,1.278,3144.3,3143.7,0.15918]
[1768235559732,1.278,3144.2,3143.7,0.15918]
[1768235561228,1.41783467,3144.2,3143.7,0.15918]
[1768235561531,1.278,3144.1,3143.7,0.15918]
[1768235561832,1.278,3144.0,3143.7,0.15918]
[1768235562032,0.13983467,3144.7,3143.7,0.15918]
[1768235562333,0.13983467,3145.4,3144.1,0.15916]
[1768235562520,3.184,3145.0,3144.1,0.15916]
[1768235563634,1.278,3144.9,3144.1,0.15916]
[1768235563828,1.278,3144.8,3144.1,0.15916]
[1768235565731,1.278,3144.8,3144.2,0.15916]
[1768235565934,1.41783467,3144.8,3142.9,0.13717632]
[1768235566136,1.41783467,3144.8,3144.0,0.15917]
[1768235566338,1.41783467,3144.8,3144.1,0.15917]
[1768235566634,1.279,3144.7,3144.2,0.15916]
[1768235569137,1.279,3144.7,3143.3,0.13309943]
[1768235569331,1.279,3144.7,3143.8,0.15918]
[1768235569837,1.279,3144.7,3143.3,0.13309943]
[1768235570038,1.279,3144.7,3143.8,0.15918]
[1768235570939,4.464,3144.6,3143.8,0.15918]
[1768235571843,4.464,3144.6,3143.8,0.15749919]
[1768235575144,3.187,3145.2,3143.8,0.15749919]
[1768235575440,4.465,3145.1,3143.2,0.13309943]
[1768235575640,4.465,3145.1,3143.2,0.15921]
[1768235575641,1.94538722,3144.7,3143.2,0.15921]
[1768235576145,2.0773019,3144.2,3141.2,5.66220235]
[1768235576338,4.466,3144.1,3142.7,0.15923]
[1768235576839,4.466,3144.0,3142.7,0.15923]
[1768235577044,4.466,3144.0,3142.7,0.16327847]
[1768235578449,1.94538722,3143.6,3141.8,0.13309943]
[1768235578746,1.94538722,3143.6,3142.2,0.15926]
[1768235578941,0.12879082,3143.8,3142.2,0.15926]
[1768235579444,0.12879082,3143.8,3142.2,0.16251952]
[1768235580339,4.466,3143.7,3142.2,0.16251952]
[1768235580646,2.85634868,3144.3,3142.6,0.15924]
[1768235580841,3.184,3144.2,3142.7,0.13309943]
[1768235581041,1.282,3144.1,3142.4,0.15925]
[1768235581242,1.282,3144.1,3142.6,0.15924]
[1768235581542,1.41081141,3144.1,3142.6,0.15924]
[1768235581751,1.94538722,3143.8,3142.6,0.15924]
[1768235582044,1.94538722,3143.8,3142.2,0.00325952]
[1768235582250,0.12881141,3144.1,3142.2,0.00325952]
[1768235582546,6.1,3144.7,3142.3,0.13309943]
[1768235582852,4.466,3144.6,3143.2,0.15921]
[1768235583038,1.282,3144.5,3143.3,0.15921]
[1768235583347,4.466,3144.4,3143.5,0.1592]
[1768235584647,4.467,3144.3,3143.5,0.1592]
[1768235585043,0.12446106,3144.2,3142.8,0.15923]
[1768235585250,0.12446106,3144.2,3142.2,0.00325952]
[1768235585450,1.94538722,3143.8,3142.2,0.00325952]
[1768235585638,5.13238722,3143.8,3142.2,0.00325952]
[1768235585946,0.12446106,3143.7,3142.2,0.00325952]
[1768235586650,0.12120154,3143.3,3141.4,0.13476877]
[1768235586844,1.283,3143.2,3141.4,0.13476877]
[1768235587038,1.283,3143.2,3141.5,0.1593]
[1768235587354,1.283,3143.2,3141.6,0.15929]
[1768235587544,4.467,3143.1,3141.9,0.15928]
[1768235587952,4.467,3143.0,3141.9,0.15928]
[1768235588744,4.467,3143.0,3141.5,0.00223586]
[1768235590654,4.59095199,3143.0,3141.5,0.00223586]
[1768235592158,0.12386629,3142.9,3141.5,0.00223586]
[1768235593246,1.94538722,3142.6,3141.5,0.00223586]
[1768235593452,1.94538722,3142.1,3140.6,0.13476877]
[1768235593646,1.283,3142.0,3140.6,0.13476877]
[1768235593955,6.1,3142.8,3140.9,0.29489438]
[1768235593956,4.468,3141.9,3140.9,0.29489438]
[1768235594157,4.468,3141.8,3140.9,0.15933]
[1768235594357,0.1221602,3142.5,3140.9,0.16249434]
[1768235594547,4.468,3142.4,3140.9,0.16249434]
[1768235595257,0.1221602,3142.5,3140.9,0.16249434]
[1768235595455,1.94538722,3142.2,3140.9,0.16249434]
[1768235595661,2.06582649,3142.2,3140.2,0.15936]
[1768235596153,1.94538722,3141.7,3140.2,0.15936]
[1768235596354,1.284,3141.6,3140.2,0.15936]
[1768235596658,1.284,3141.6,3140.2,0.16233441]
[1768235596852,4.469,3141.5,3140.2,0.16233441]
[1768235597357,2.06582649,3142.2,3140.2,0.16233441]
[1768235597654,3.185,3141.4,3140.2,0.00297441]
[1768235597854,1.284,3141.3,3140.2,0.00297441]
[1768235598058,4.47,3141.2,3140.2,0.00297441]
[1768235599762,3.186,3141.3,3140.2,0.13853879]
[1768235599959,1.284,3141.2,3140.2,0.13853879]
[1768235600159,1.284,3141.2,3140.3,0.15936]
[1768235600946,1.284,3141.2,3140.3,0.29492438]
[1768235601150,1.284,3141.1,3140.3,0.29492438]
[1768235601556,2.06216901,3142.4,3140.3,0.13556438]
[1768235601754,4.47,3142.3,3140.8,0.15933]
[1768235601957,4.47,3142.2,3140.8,0.15933]
[1768235602161,7.657,3142.2,3140.8,0.15933]
[1768235602370,4.47,3142.2,3140.8,0.15933]
[1768235602757,4.47,3142.2,3140.2,0.16233441]
[1768235602758,1.94538722,3141.9,3140.2,0.16233441]
[1768235603057,3.187,3141.8,3140.3,0.15936]
[1768235603258,0.14119977,3141.2,3139.9,0.15938]
[1768235603571,4.471,3141.1,3138.8,1.94538722]
[1768235603866,4.471,3141.1,3139.9,0.15938]
[1768235604066,4.471,3141.1,3140.0,0.15937]
[1768235604364,1.285,3141.0,3140.0,0.15937]
[1768235604569,1.285,3140.9,3140.0,0.15937]
[1768235606066,2.08658699,3140.8,3139.4,0.1594]
[1768235606263,0.14119977,3140.7,3139.4,0.1594]
[1768235606665,0.14119977,3140.7,3138.8,0.00409101]
[1768235606858,0.14119977,3140.7,3138.8,0.16352101]
[1768235607057,3.19054099,3141.0,3138.8,0.13965539]
[1768235607274,4.61319977,3140.9,3138.8,0.13965539]
[1768235607457,0.14119977,3140.8,3138.8,0.13965539]
[1768235607857,0.00354099,3141.0,3139.5,0.1594]
[1768235608058,0.00354099,3141.0,3138.9,0.13556438]
[1768235608270,4.472,3140.9,3139.6,0.15939]
[1768235608769,4.61319977,3140.9,3139.6,0.15939]
[1768235608970,0.14119977,3140.8,3139.6,0.15939]
[1768235609665,0.14119977,3140.8,3138.8,0.00409101]
[1768235609666,2.08658699,3140.6,3138.9,0.15943]
[1768235610072,2.08658699,3140.6,3139.0,0.15942]
[1768235610572,4.472,3140.5,3139.5,0.1594]
[1768235610764,4.472,3140.5,3138.8,0.00409101]
[1768235611164,4.472,3140.5,3139.5,0.1594]
[1768235611371,0.14119977,3140.9,3139.5,0.1594]
[1768235611558,0.14119977,3140.9,3138.8,6.00409101]
[1768235611559,3.187,3140.8,3139.9,0.15938]
[1768235611763,1.285,3140.7,3139.9,0.15938]
[1768235612260,0.14119977,3140.9,3139.9,0.15938]
[1768235612467,1.94538722,3140.3,3139.3,0.15941]